bitfinex/quotes_SOLUSD_20220114
["timestamp","ask_amount","ask_price","bid_price","bid_amount"]
[1642151605904,10.42,146.94,146.88,12.08241266]
[1642151606507,9.91,146.94,146.88,12.08241266]
[1642151606706,10.16,146.94,146.88,12.08241266]
[1642151607910,10.42,146.94,146.88,12.08241266]
[1642151608308,10.42,146.94,146.88,1.87291266]
[1642151608809,2.722,146.93,146.88,1.87291266]
[1642151609012,0.25,146.93,146.88,1.87291266]
[1642151609610,2.722,146.92,146.88,1.87291266]
[1642151609810,12.9356,146.92,146.88,1.87291266]
[1642151610011,13.1856,146.92,146.87,1.87291266]
[1642151611012,13.1856,146.92,146.85,1.87291266]
[1642151612441,68.43,146.91,146.85,1.87291266]
[1642151612639,10.2137,146.91,146.85,1.87291266]
[1642151612938,10.4637,146.91,146.85,1.87291266]
[1642151613338,10.4637,146.91,146.84,26.21921266]
[1642151613541,10.4637,146.91,146.84,26.46921266]
[1642151613739,10.7237,146.91,146.84,26.46921266]
[1642151614439,10.7237,146.91,146.85,2.723]
[1642151616143,0.51,146.91,146.85,2.723]
[1642151616544,27.667,146.93,146.85,2.723]
[1642151616943,27.667,146.93,146.86,23.1141]
[1642151617344,27.927,146.93,146.86,23.1141]
[1642151618646,2.723,146.93,146.87,2.723]
[1642151618943,2.723,146.93,146.87,2.973]
[1642151619144,1.94981109,146.95,146.87,2.973]
[1642151619352,1.94981109,146.95,146.89,30.32449211]
[1642151619544,1.94981109,146.95,146.9,2.722]
[1642151619949,1.94981109,146.95,146.9,2.972]
[1642151620246,1.94981109,146.99,146.9,2.972]
[1642151620448,1.94981109,146.99,146.91,23.2673]
[1642151620646,2.20981109,146.99,146.92,2.722]
[1642151621045,2.20981109,146.99,146.92,13.1782]
[1642151621246,2.45981109,146.99,146.92,13.1782]
[1642151621647,0.51,146.99,146.92,13.1782]
[1642151621849,0.51,146.99,146.92,10.4562]
[1642151622051,2.19981109,147.0,146.92,10.4562]
[1642151622248,12.40741109,147.0,146.92,10.4562]
[1642151622950,2.19981109,147.0,146.92,10.4562]
[1642151623955,2.45981109,147.0,146.92,10.4562]
[1642151631388,2.19981109,147.0,146.92,10.4562]
[1642151633092,2.45981109,147.0,146.92,10.4562]
[1642151635390,12.66731109,147.0,146.92,10.4562]
[1642151637892,2.45981109,147.0,146.92,10.4562]
[1642151638295,12.36981109,147.0,146.92,10.4562]
[1642151639698,12.36981109,147.0,146.93,24.2792]
[1642151640095,12.36981109,147.0,146.93,24.5292]
[1642151640695,12.10981109,147.0,146.93,34.7355]
[1642151642498,10.16,147.0,146.93,34.7355]
[1642151643399,9.91,147.0,146.93,34.7355]
[1642151644402,10.17,147.0,146.93,34.7355]
[1642151645001,10.42,147.0,146.93,34.7355]
[1642151645200,20.6275,147.0,146.93,24.2792]
[1642151645404,22.30435959,147.0,146.93,24.2792]
[1642151646102,2.721,146.99,146.93,24.2792]
[1642151646304,12.9297,146.99,146.93,24.2792]
[1642151646503,13.1797,146.99,146.93,24.2792]
[1642151646804,15.12951109,146.99,146.93,24.2792]
[1642151647407,25.03951109,146.99,146.93,24.2792]
[1642151647704,93.46951109,146.99,146.93,24.2792]
[1642151649205,95.14637068,146.99,146.9,1.87291266]
[1642151650009,118.91117068,146.99,146.9,1.87291266]
[1642151650808,118.91117068,146.99,146.88,1.87291266]
[1642151651108,10.2114,146.95,146.88,1.87291266]
[1642151651508,79.1514,146.95,146.88,1.87291266]
[1642151651713,10.7214,146.95,146.88,1.87291266]
[1642151652111,10.7214,146.95,146.87,50.56931266]
[1642151652309,10.7214,146.95,146.87,47.84731266]
[1642151653513,81.10121109,146.95,146.87,45.9744]
[1642151654411,2.722,146.94,146.87,45.9744]
[1642151654611,12.9339,146.94,146.87,47.84731266]
[1642151654813,13.1839,146.94,146.87,47.84731266]
[1642151655714,13.1839,146.94,146.87,24.67441266]
[1642151655911,13.4439,146.94,146.87,24.67441266]
[1642151656515,81.8739,146.94,146.87,22.8015]
[1642151657722,79.1519,146.94,146.87,22.8015]
[1642151660121,79.1519,146.94,146.88,0.03422875]
[1642151661230,10.4619,146.94,146.88,0.03422875]
[1642151663947,10.7219,146.94,146.88,0.03422875]
[1642151664754,2.722,146.93,146.88,0.03422875]
[1642151664954,13.1847,146.93,146.88,0.03422875]
[1642151665357,10.4627,146.93,146.88,0.03422875]
[1642151668760,10.7227,146.93,146.88,0.03422875]
[1642151670461,0.51,146.93,146.88,0.03422875]
[1642151670661,114.82031109,146.95,146.88,0.03422875]
[1642151670860,115.08031109,146.95,146.88,0.03422875]
[1642151671660,113.1305,146.95,146.88,0.03422875]
[1642151674766,44.7005,146.95,146.88,0.03422875]
[1642151676972,68.43,146.94,146.88,0.03422875]
[1642151677173,10.2127,146.93,146.88,0.03422875]
[1642151677572,12.13955959,146.93,146.88,0.03422875]
[1642151677773,22.04955959,146.93,146.88,0.03422875]
[1642151678176,71.152,146.92,146.88,0.03422875]
[1642151678373,9.91,146.91,146.87,0.03422875]
[1642151678572,68.43,146.89,146.87,0.03422875]
[1642151678773,2.723,146.88,146.87,0.03422875]
[1642151678975,0.25,146.88,146.87,0.03422875]
[1642151679174,3.01474401,146.88,146.87,0.03422875]
[1642151679374,2.76474401,146.88,146.87,0.03422875]
[1642151679576,3.01474401,146.88,146.87,0.03422875]
[1642151680677,0.75,146.88,146.87,3.33388467]
[1642151680875,0.25,146.88,146.87,3.33388467]
[1642151681375,20.3838,146.91,146.87,3.33388467]
[1642151681577,20.1238,146.91,146.87,3.33388467]
[1642151682178,9.91,146.91,146.87,3.33388467]
[1642151683009,10.17,146.91,146.87,3.33388467]
[1642151684013,10.42,146.91,146.87,3.33388467]
[1642151685913,10.17,146.91,146.87,3.33388467]
[1642151686115,1.94981109,146.94,146.88,2.723]
[1642151686411,1.94981109,146.94,146.88,4.14077022]
[1642151686613,1.94981109,146.94,146.88,2.973]
[1642151686911,1.94981109,146.94,146.88,33.4532]
[1642151687111,1.94981109,146.97,146.89,0.03422875]
[1642151687312,2.19981109,146.97,146.9,2.722]
[1642151687513,2.722,146.96,146.89,0.03422875]
[1642151687711,9.867,146.96,146.89,0.03422875]
[1642151687913,20.287,146.96,146.89,0.03422875]
[1642151688415,22.23681109,146.96,146.89,0.03422875]
[1642151689214,32.44731109,146.96,146.89,0.03422875]
[1642151689617,32.44731109,146.96,146.88,0.03422875]
[1642151689816,1.94981109,146.94,146.88,0.03422875]
[1642151690015,12.632,146.93,146.88,0.03422875]
[1642151690215,18.302,146.93,146.88,0.03422875]
[1642151690415,18.552,146.93,146.88,0.03422875]
[1642151690815,1.94981109,146.92,146.88,0.03422875]
[1642151691018,12.632,146.91,146.88,0.03422875]
[1642151691217,68.43,146.9,146.88,0.03422875]
[1642151691416,5.48774401,146.89,146.88,0.03422875]
[1642151691816,5.73774401,146.89,146.88,0.03422875]
[1642151692418,15.95404401,146.89,146.88,0.03422875]
[1642151692618,15.95404401,146.89,146.84,0.03422875]
[1642151693620,16.21404401,146.89,146.84,0.03422875]
[1642151695120,13.49104401,146.89,146.84,0.03422875]
[1642151695620,13.23104401,146.89,146.84,0.03422875]
[1642151696718,13.23104401,146.89,146.83,0.03422875]
[1642151696920,13.49104401,146.89,146.83,0.03422875]
[1642151697921,16.21404401,146.89,146.83,0.03422875]
[1642151698126,15.96404401,146.89,146.83,0.03422875]
[1642151698528,5.74774401,146.89,146.83,0.03422875]
[1642151699027,3.02474401,146.89,146.83,0.03422875]
[1642151699625,3.27474401,146.89,146.83,1.90714141]
[1642151699827,13.49004401,146.89,146.83,1.90714141]
[1642151700026,13.49004401,146.89,146.83,1.87291266]
[1642151700325,13.49004401,146.89,146.82,1.90714141]
[1642151700728,3.27474401,146.89,146.82,1.90714141]
[1642151700926,3.01474401,146.89,146.82,1.90714141]
[1642151701828,3.01474401,146.89,146.82,2.15714141]
[1642151702030,0.25,146.89,146.82,12.37114141]
[1642151702230,9.91,146.9,146.83,1.87291266]
[1642151702430,10.16,146.9,146.84,2.723]
[1642151702730,0.25,146.9,146.84,2.723]
[1642151702930,2.19981109,146.92,146.84,2.973]
[1642151703132,11.85981109,146.93,146.85,10.2116]
[1642151703331,11.85981109,146.93,146.87,29.49256064]
[1642151703332,0.25,146.92,146.87,29.49256064]
[1642151703629,11.85981109,146.93,146.87,35.74256064]
[1642151704230,9.91,146.93,146.87,35.74256064]
[1642151704430,9.91,146.93,146.88,2.722]
[1642151704631,9.91,146.93,146.88,12.9315]
[1642151704831,10.16,146.93,146.88,12.9315]
[1642151705731,10.16,146.93,146.88,10.2095]
[1642151706533,0.25,146.93,146.88,10.2095]
[1642151706733,0.51,146.93,146.89,0.03422875]
[1642151706933,12.36981109,146.96,146.89,10.24272875]
[1642151708136,12.10981109,146.96,146.89,10.24272875]
[1642151708336,1.94981109,146.96,146.89,10.24272875]
[1642151708536,1.94981109,146.96,146.89,16.49272875]
[1642151708736,1.94981109,146.96,146.89,17.91049897]
[1642151708966,1.94981109,146.96,146.89,86.60049897]
[1642151709165,0.94788675,146.92,146.89,86.60049897]
[1642151709463,1.8957735,146.92,146.91,10.2057]
[1642151709664,1.8957735,146.92,146.91,12.9277]
[1642151709865,1.94981109,146.98,146.91,13.1777]
[1642151710067,2.19981109,146.98,146.93,24.91088657]
[1642151710768,0.25,146.98,146.93,24.91088657]
[1642151710964,2.19981109,146.99,146.93,24.91088657]
[1642151711164,2.19981109,146.99,146.93,35.11728657]
[1642151711964,2.45981109,146.99,146.93,35.11728657]
[1642151713269,2.45981109,146.99,146.94,0.03422875]
[1642151715973,2.45981109,146.99,146.94,10.23982875]
[1642151716977,2.19981109,146.99,146.94,10.23982875]
[1642151718580,1.94981109,146.99,146.94,10.23982875]
[1642151718776,1.94981109,146.99,146.94,10.48982875]
[1642151719576,1.94981109,146.99,146.94,16.48982875]
[1642151719878,1.94981109,146.99,146.94,10.48982875]
[1642151720078,3.90350899,147.03,146.94,10.48982875]
[1642151720079,1.94981109,147.02,146.96,10.2038]
[1642151720278,0.26,146.99,146.96,10.2038]
[1642151720479,2.20981109,147.02,146.97,3.33388467]
[1642151720982,2.45981109,147.02,146.97,3.33388467]
[1642151721782,2.20981109,147.02,146.97,3.33388467]
[1642151721990,2.45981109,147.02,146.97,3.33388467]
[1642151724491,1.94981109,147.01,146.97,3.33388467]
[1642151724892,2.19981109,147.01,146.97,3.33388467]
[1642151725390,1.94981109,147.01,146.97,3.33388467]
[1642151725591,1.94981109,147.01,146.97,3.58388467]
[1642151725992,0.34167813,147.04,146.97,3.58388467]
[1642151726192,0.34167813,147.04,146.99,31.4514256]
[1642151726592,0.34167813,147.04,147.0,0.03422875]
[1642151728122,0.34167813,147.04,147.01,10.2008]
[1642151728320,0.34167813,147.04,147.02,3.29965592]
[1642151730423,0.34167813,147.04,147.02,13.49965592]
[1642151730824,0.34167813,147.04,147.03,0.03422875]
[1642151732229,0.34167813,147.04,147.03,10.23332875]
[1642151733124,6.62350899,147.1,147.04,26.0]
[1642151733323,6.62350899,147.1,147.05,38.4433716]
[1642151733324,3.90350899,147.1,147.05,38.4433716]
[1642151733525,3.90350899,147.1,147.05,38.47760035]
[1642151734526,4.41350899,147.1,147.05,38.47760035]
[1642151735526,0.51,147.1,147.05,38.47760035]
[1642151735926,6.87250899,147.13,147.05,38.47760035]
[1642151736125,6.87250899,147.13,147.05,41.19660035]
[1642151736527,6.87250899,147.13,147.05,65.32610035]
[1642151737130,6.87250899,147.13,147.05,62.60710035]
[1642151737529,2.969,147.13,147.05,62.60710035]
[1642151738230,2.969,147.13,147.05,38.47760035]
[1642151738430,2.969,147.13,147.05,28.30020035]
[1642151739031,2.969,147.13,147.05,28.32020035]
[1642151739230,6.87250899,147.13,147.05,28.32020035]
[1642151739430,6.88250899,147.13,147.05,28.57020035]
[1642151739632,4.16350899,147.13,147.05,28.57020035]
[1642151739834,4.16350899,147.13,147.05,38.51820035]
[1642151740236,0.26,147.13,147.05,38.51820035]
[1642151740433,16.53250899,147.14,147.05,38.51820035]
[1642151740637,16.79250899,147.14,147.05,38.51820035]
[1642151740835,95.67030899,147.14,147.05,28.32020035]
[1642151741134,7.80082394,147.13,147.05,28.32020035]
[1642151741336,2.719,147.12,147.05,28.32020035]
[1642151741541,2.969,147.12,147.05,28.32020035]
[1642151741938,13.1679,147.12,147.05,28.32020035]
[1642151742141,17.07140899,147.12,147.05,28.32020035]
[1642151742343,14.35240899,147.12,147.05,0.07422875]
[1642151743340,14.61240899,147.12,147.05,0.07422875]
[1642151744240,10.2018,147.08,147.05,0.07422875]
[1642151744443,20.3618,147.08,147.05,0.07422875]
[1642151744642,2.76474401,147.07,147.05,0.07422875]
[1642151745042,3.01474401,147.07,147.05,0.07422875]
[1642151745643,3.01474401,147.07,147.06,0.76745595]
[1642151745845,3.01474401,147.07,147.05,0.07422875]
[1642151746970,3.27474401,147.07,147.05,0.07422875]
[1642151756982,3.27474401,147.07,147.05,0.8416847]
[1642151757383,3.27474401,147.07,147.05,0.07422875]
[1642151759084,3.01474401,147.07,147.05,0.07422875]
[1642151759484,13.21724401,147.07,147.05,0.07422875]
[1642151760083,3.01474401,147.07,147.05,0.07422875]
[1642151760487,3.27474401,147.07,147.05,0.07422875]
[1642151760687,13.47764401,147.07,147.05,0.07422875]
[1642151760886,2.719,147.06,147.05,0.07422875]
[1642151761086,2.969,147.06,147.05,0.07422875]
[1642151762287,2.719,147.06,147.05,0.07422875]
[1642151762485,2.969,147.06,147.05,0.07422875]
[1642151762887,3.229,147.06,147.05,0.07422875]
[1642151763287,0.51,147.06,147.05,0.07422875]
[1642151764086,0.25,147.06,147.05,0.07422875]
[1642151766590,10.16,147.06,147.05,0.07422875]
[1642151767992,10.42,147.06,147.05,0.07422875]
[1642151774826,15.858,147.06,147.05,0.07422875]
[1642151775323,15.858,147.06,147.0,2.72]
[1642151775324,28.7813,147.06,147.0,2.72]
[1642151775525,2.72,147.05,147.0,2.72]
[1642151775724,9.91,147.04,147.0,2.72]
[1642151775929,2.72,147.03,147.0,2.72]
[1642151776125,12.63,147.03,147.0,2.72]
[1642151776326,23.0876,147.03,147.0,2.72]
[1642151777328,20.3676,147.03,146.97,26.0327]
[1642151777526,20.3676,147.03,146.97,23.3127]
[1642151779431,20.6276,147.03,146.97,23.3127]
[1642151780431,20.6276,147.03,146.94,2.721]
[1642151780632,20.6276,147.03,146.92,25.3267]
[1642151780834,2.721,147.02,146.92,25.3267]
[1642151781036,10.2081,147.0,146.92,25.5767]
[1642151781435,10.4581,147.0,146.93,25.20986596]
[1642151781736,10.4581,147.0,146.94,2.721]
[1642151782437,0.25,147.0,146.94,2.721]
[1642151782636,0.25,147.0,146.94,27.4767]
[1642151782836,34.286,147.02,146.94,27.4767]
[1642151782837,34.536,147.02,146.94,27.4767]
[1642151783939,34.796,147.02,146.94,27.4767]
[1642151784440,34.536,147.02,146.94,27.4767]
[1642151785743,34.796,147.02,146.94,27.4767]
[1642151787350,81.061,147.01,146.91,2.721]
[1642151787549,10.2097,146.97,146.91,2.721]
[1642151788047,10.4597,146.97,146.91,2.721]
[1642151789050,10.4597,146.97,146.9,50.9466]
[1642151789250,10.4597,146.97,146.9,2.722]
[1642151789451,10.4597,146.97,146.88,2.722]
[1642151789650,2.722,146.96,146.86,3.82898706]
[1642151789852,10.2111,146.95,146.86,3.82898706]
[1642151790151,10.4611,146.95,146.87,2.722]
[1642151790351,71.152,146.94,146.86,3.82898706]
[1642151790550,71.152,146.94,146.85,26.3588]
[1642151790551,81.312,146.94,146.85,26.3588]
[1642151790753,10.2127,146.93,146.84,32.73627376]
[1642151790951,2.723,146.92,146.84,30.01327376]
[1642151791251,2.723,146.92,146.84,3.82898706]
[1642151791491,12.883,146.92,146.84,3.82898706]
[1642151791881,10.214,146.91,146.83,6.55198706]
[1642151792080,12.633,146.9,146.83,3.82898706]
[1642151792379,9.91,146.9,146.83,31.7309106]
[1642151792583,10.16,146.9,146.83,31.7309106]
[1642151792780,10.16,146.9,146.83,27.90192354]
[1642151792980,9.91,146.9,146.83,28.15192354]
[1642151793580,9.91,146.9,146.84,2.723]
[1642151793983,9.91,146.9,146.84,2.973]
[1642151794481,10.16,146.9,146.84,2.973]
[1642151796182,10.16,146.9,146.84,13.1854]
[1642151796484,10.42,146.9,146.84,13.1854]
[1642151798784,10.42,146.9,146.84,12.9354]
[1642151798985,10.42,146.9,146.84,13.1854]
[1642151799884,10.16,146.9,146.84,13.1854]
[1642151800286,0.25,146.9,146.84,13.1854]
[1642151800486,12.883,146.93,146.86,26.17560837]
[1642151800687,10.16,146.93,146.86,26.17560837]
[1642151801589,9.91,146.93,146.86,26.17560837]
[1642151801786,9.91,146.93,146.86,26.42560837]
[1642151802188,9.91,146.93,146.86,26.17560837]
[1642151802401,12.633,146.93,146.86,26.17560837]
[1642151802988,12.883,146.93,146.86,26.17560837]
[1642151803288,10.16,146.93,146.87,2.723]
[1642151803489,10.42,146.93,146.87,2.723]
[1642151804190,10.42,146.93,146.86,39.10880837]
[1642151804388,10.17,146.93,146.86,39.35880837]
[1642151804790,10.17,146.93,146.86,39.10880837]
[1642151805593,10.42,146.93,146.86,29.14760837]
[1642151805790,10.42,146.93,146.86,28.89760837]
[1642151806592,10.42,146.93,146.86,26.17560837]
[1642151806893,13.143,146.93,146.86,26.17560837]
[1642151807292,13.143,146.93,146.86,26.42560837]
[1642151807492,10.42,146.93,146.87,2.723]
[1642151807892,10.42,146.93,146.87,2.973]
[1642151808996,10.42,146.93,146.87,13.1834]
[1642151809601,2.722,146.92,146.86,26.17560837]
[1642151809997,12.882,146.92,146.86,26.17560837]
[1642151810397,12.882,146.92,146.84,3.82898706]
[1642151810602,12.882,146.92,146.83,22.8305]
[1642151810799,23.0953,146.92,146.83,22.8305]
[1642151811497,23.0953,146.92,146.84,23.81414651]
[1642151812499,24.77215959,146.92,146.84,23.81414651]
[1642151812806,68.43,146.91,146.84,23.81414651]
[1642151813107,12.9377,146.9,146.84,23.81414651]
[1642151813405,2.723,146.9,146.84,23.81414651]
[1642151813605,2.973,146.9,146.84,24.06414651]
[1642151814105,0.25,146.9,146.85,2.723]
[1642151814305,0.25,146.9,146.85,26.288]
[1642151814709,10.42,146.92,146.85,26.288]
[1642151815206,10.42,146.92,146.86,10.2111]
[1642151815407,10.42,146.92,146.87,30.07906904]
[1642151821338,10.17,146.92,146.87,30.07906904]
[1642151822437,10.42,146.92,146.87,30.07906904]
[1642151823440,10.42,146.92,146.85,23.565]
[1642151824241,20.633,146.92,146.83,2.723]
[1642151824544,2.723,146.91,146.83,23.16885743]
[1642151824741,12.633,146.91,146.83,23.16885743]
[1642151824942,12.883,146.91,146.84,24.3183]
[1642151827145,23.097,146.91,146.84,24.3183]
[1642151828546,20.384,146.91,146.84,27.0413]
[1642151829949,20.634,146.91,146.84,27.0413]
[1642151830749,20.124,146.91,146.84,27.0413]
[1642151830950,20.124,146.91,146.84,27.2913]
[1642151831149,9.91,146.91,146.84,27.2913]
[1642151832049,10.17,146.91,146.84,37.5039]
[1642151833650,9.91,146.91,146.84,37.5039]
[1642151834652,20.1238,146.91,146.84,27.2913]
[1642151834852,20.1238,146.91,146.84,24.5683]
[1642151835053,20.3738,146.91,146.84,24.5683]
[1642151835456,20.3738,146.91,146.84,24.3183]
[1642151835654,20.3738,146.91,146.83,2.723]
[1642151835855,10.2164,146.88,146.83,2.723]
[1642151836053,2.723,146.87,146.79,26.68588706]
[1642151836482,2.973,146.87,146.79,32.68588706]
[1642151836655,2.973,146.87,146.8,30.83493405]
[1642151837055,2.973,146.87,146.8,36.83493405]
[1642151837455,3.233,146.87,146.8,36.83493405]
[1642151838358,13.4498,146.87,146.8,36.83493405]
[1642151839156,10.7268,146.87,146.8,36.83493405]
[1642151839556,0.51,146.87,146.8,47.05033405]
[1642151839856,0.51,146.87,146.8,36.83493405]
[1642151840058,12.884,146.88,146.8,36.83493405]
[1642151840259,81.314,146.88,146.8,36.83493405]
[1642151840661,81.314,146.88,146.8,6.0]
[1642151840858,81.314,146.88,146.79,28.8569]
[1642151841060,10.2166,146.87,146.79,28.8569]
[1642151841259,2.724,146.86,146.79,28.8569]
[1642151841459,0.25,146.86,146.79,28.8569]
[1642151842463,2.974,146.87,146.79,28.8569]
[1642151843358,12.884,146.87,146.79,28.8569]
[1642151843759,12.884,146.87,146.79,6.0]
[1642151843992,12.884,146.87,146.78,8.724]
[1642151844259,12.884,146.87,146.78,26.6124]
[1642151844463,12.884,146.87,146.78,32.6124]
[1642151844659,23.1006,146.87,146.78,42.8292]
[1642151845263,47.0293,146.87,146.78,42.8292]
[1642151845661,47.0293,146.87,146.78,32.6124]
[1642151846565,52.9673,146.87,146.79,1.95183328]
[1642151847165,121.3973,146.87,146.79,1.95183328]
[1642151847565,121.3973,146.87,146.78,4.67583328]
[1642151847964,53.2273,146.87,146.78,4.67583328]
[1642151848665,55.06213285,146.87,146.78,4.67583328]
[1642151848965,55.06213285,146.87,146.78,1.95183328]
[1642151849667,55.06213285,146.87,146.79,23.1161]
[1642151850167,53.2273,146.87,146.79,23.1161]
[1642151850568,53.2273,146.87,146.8,23.20756951]
[1642151850773,47.2893,146.87,146.8,23.20756951]
[1642151851171,44.5653,146.87,146.8,23.20756951]
[1642151851811,44.3153,146.87,146.8,23.20756951]
[1642151853011,2.724,146.86,146.8,23.20756951]
[1642151853210,12.634,146.86,146.8,23.20756951]
[1642151854212,9.91,146.86,146.8,23.20756951]
[1642151854612,10.16,146.86,146.8,23.20756951]
[1642151856015,10.42,146.86,146.8,23.20756951]
[1642151856212,0.51,146.86,146.8,23.20756951]
[1642151856413,0.51,146.86,146.81,23.09]
[1642151856615,9.91,146.86,146.81,23.09]
[1642151857014,10.16,146.86,146.81,23.09]
[1642151858021,10.16,146.86,146.82,2.724]
[1642151858222,10.16,146.86,146.83,27.09732533]
[1642151858424,2.76474401,146.85,146.83,27.09732533]
[1642151858822,0.25,146.85,146.84,3.29965592]
[1642151859224,1.83483285,146.89,146.84,3.54965592]
[1642151859425,1.83483285,146.89,146.85,2.723]
[1642151859627,1.83483285,146.9,146.86,25.75408921]
[1642151860825,11.74483285,146.92,146.86,25.75408921]
[1642151861229,14.46783285,146.92,146.86,25.75408921]
[1642151861628,14.72783285,146.92,146.86,25.75408921]
[1642151862430,24.94123285,146.92,146.86,25.75408921]
[1642151862755,22.46823285,146.92,146.85,25.5631]
[1642151863556,22.46823285,146.92,146.85,51.08556031]
[1642151863960,22.46823285,146.92,146.85,48.36256031]
[1642151864861,1.83483285,146.91,146.85,48.36256031]
[1642151865058,11.99483285,146.91,146.85,48.36256031]
[1642151865259,12.25483285,146.91,146.85,48.36256031]
[1642151865559,12.25483285,146.91,146.85,51.08556031]
[1642151867060,10.42,146.91,146.85,51.08556031]
[1642151868963,10.42,146.91,146.86,0.50814639]
[1642151869370,10.42,146.91,146.86,3.23114639]
[1642151870373,10.42,146.91,146.86,0.50814639]
[1642151876978,10.17,146.91,146.86,0.50814639]
[1642151877181,9.91,146.91,146.86,0.50814639]
[1642151878480,9.91,146.91,146.86,10.71914639]
[1642151878681,9.91,146.91,146.86,10.96914639]
[1642151878881,9.91,146.91,146.86,0.50814639]
[1642151879085,2.723,146.9,146.86,2.45997967]
[1642151879282,10.874,146.9,146.86,2.45997967]
[1642151879685,21.089,146.9,146.86,2.45997967]
[1642151879884,21.349,146.9,146.86,2.45997967]
[1642151880084,21.349,146.9,146.86,0.50814639]
[1642151880284,21.599,146.9,146.86,0.50814639]
[1642151880485,21.599,146.9,146.84,0.50814639]
[1642151880884,10.217,146.87,146.84,0.50814639]
[1642151881087,2.76474401,146.86,146.84,0.50814639]
[1642151881286,2.723,146.85,146.84,0.50814639]
[1642151881519,0.25,146.85,146.84,0.50814639]
[1642151883417,0.25,146.85,146.81,0.50814639]
[1642151883619,15.70524401,146.86,146.81,0.50814639]
[1642151883620,13.1905,146.86,146.81,0.50814639]
[1642151884719,10.7275,146.86,146.81,0.50814639]
[1642151887825,0.51,146.86,146.81,0.50814639]
[1642151888031,10.16,146.87,146.81,0.50814639]
[1642151888224,10.16,146.87,146.81,3.23214639]
[1642151889124,9.91,146.87,146.81,5.43397967]
[1642151889336,10.17,146.87,146.81,5.18397967]
[1642151889528,10.17,146.87,146.83,30.44121393]
[1642151889726,10.17,146.87,146.84,2.723]
[1642151889926,10.17,146.87,146.84,3.23114639]
[1642151890128,10.17,146.87,146.85,3.29965592]
[1642151890327,10.42,146.87,146.85,3.29965592]
[1642151890526,10.17,146.87,146.85,3.29965592]
[1642151890732,10.42,146.87,146.85,3.29965592]
[1642151891527,2.76474401,146.86,146.84,0.50814639]
[1642151891927,3.01474401,146.86,146.84,0.50814639]
[1642151892430,2.76474401,146.86,146.84,0.50814639]
[1642151892836,2.76474401,146.86,146.84,6.53080231]
[1642151893235,2.76474401,146.86,146.84,3.80780231]
[1642151893431,3.01474401,146.86,146.84,0.50814639]
[1642151894830,2.723,146.85,146.83,0.50814639]
[1642151895031,2.973,146.85,146.83,0.50814639]
[1642151895231,2.76474401,146.84,146.83,0.50814639]
[1642151895632,3.01474401,146.84,146.83,0.50814639]
[1642151896032,3.27474401,146.84,146.83,0.50814639]
[1642151896232,13.49354401,146.84,146.83,0.50814639]
[1642151897932,13.49354401,146.84,146.81,0.50814639]
[1642151899734,3.27474401,146.84,146.82,3.29965592]
[1642151899935,3.27474401,146.84,146.81,0.50814639]
[1642151900935,3.27474401,146.84,146.82,3.29965592]
[1642151901233,0.51,146.84,146.83,0.50814639]
[1642151904237,0.51,146.84,146.83,3.80780231]
[1642151904837,3.27474401,146.84,146.83,1.27560234]
[1642151905039,3.27474401,146.84,146.83,0.50814639]
[1642151905637,3.27474401,146.84,146.81,0.50814639]
[1642151905835,3.27474401,146.84,146.82,3.29965592]
[1642151906036,3.27474401,146.84,146.81,0.50814639]
[1642151909038,5.99874401,146.84,146.81,0.50814639]
[1642151909340,16.21754401,146.84,146.81,0.50814639]
[1642151911141,15.95754401,146.84,146.81,0.50814639]
[1642151911346,13.23354401,146.84,146.81,0.50814639]
[1642151911541,3.01474401,146.84,146.81,0.50814639]
[1642151912543,3.27474401,146.84,146.81,0.50814639]
[1642151913344,3.01474401,146.84,146.79,0.50814639]
[1642151913543,3.01474401,146.84,146.79,2.45997967]
[1642151914744,3.27474401,146.84,146.8,2.724]
[1642151914947,2.76474401,146.84,146.8,0.25]